Cogmind - Beta 15 @@@ ROGUE MODE // 2025.06.18 @ 19:42:19 Player: Struisvogel Result: Self-destructed Performance ------------- Evolutions (1) 500 Regions Visited (4) 800 Robots Destroyed (26) 130 Value Destroyed (733) 733 Prototype IDs (1) 20 Alien Tech Used (0) 0 Bonus (0) 0 TOTAL SCORE: 2183 Bonus ------- None Cogmind --------- Core Integrity 284/400 Matter 300/300 Energy 76/100 System Corruption 5% Temperature Cool (46) Movement Flying (117) Ox1 Location -9/Mines Parts ------- > --- POWER (1) -------- (None) > --- PROPULSION (3) --- Flight Unit Flight Unit > --- UTILITY (3) ------ Medium Storage Unit Utility Shielding > --- WEAPON (2) ------- EM Shotgun > --- INVENTORY (10) --- Improved Ion Engine Cooled Ion Engine Light Nuclear Core Aluminum Leg Aluminum Leg Flight Unit Utility Shielding Light Armor Plating Peak State ------------ > --- POWER ------------ Light Nuclear Core > --- PROPULSION ------- Light Treads Light Treads Light Treads > --- UTILITY ---------- Medium Storage Unit Utility Shielding Hardened Light Armor Plating > --- WEAPON ----------- Small Laser Particle Gun > --- INVENTORY -------- Ion Engine Improved Ion Engine Light Nuclear Core Aluminum Leg Aluminum Leg Utility Shielding Small Laser Assault Rifle Light Assault Rifle [Rating: 14] Favorites ----------- Power Light Nuclear Core Engine Light Ion Engine Power Core Light Nuclear Core Propulsion Light Treads Treads Light Treads Leg Aluminum Leg Flight Unit Flight Unit Utility Medium Storage Unit Storage Medium Storage Unit Protection Utility Shielding Weapon Small Laser Energy Gun Small Laser Ballistic Gun Assault Rifle Ballistic Cannon Light Cannon Build | -11 -10 -10 -9 -9 ------- Run | Yrd Mat Min Mat Min Slots Evolved 2 | . . . 2 . Power . | . . . . . Propulsion 1 | . . . 1 . Utility 1 | . . . 1 . Weapon . | . . . . . Parts Attached 21 | 6 1 2 12 . Power 4 | 1 . 1 2 . Engine 2 | 1 . . 1 . Core 2 | . . 1 1 . Reactor . | . . . . . Propulsion 8 | 2 . . 6 . Treads 3 | 2 . . 1 . Leg 2 | . . . 2 . Wheel . | . . . . . Hover . | . . . . . Flight 3 | . . . 3 . Utility 4 | 1 1 . 2 . Device . | . . . . . Storage 2 | 1 1 . . . Processor . | . . . . . Hackware . | . . . . . Protection 2 | . . . 2 . Artifact . | . . . . . Weapon 5 | 2 . 1 2 . Energy Gun 3 | 1 . . 2 . Energy Cannon . | . . . . . Ballistic Gun 1 | 1 . . . . Ballistic Cannon 1 | . . 1 . . Launcher . | . . . . . Special Weapon . | . . . . . Impact Weapon . | . . . . . Slashing Weapon . | . . . . . Piercing Weapon . | . . . . . Special Melee Weapon . | . . . . . Unidentified Prototypes 1 | . . . 1 . Parts Lost 5 | . . . 3 2 Power 2 | . . . 1 1 Propulsion 2 | . . . 1 1 Utility . | . . . . . Weapon 1 | . . . 1 . Highest Loss Streak 2 | . . . 1 2 To Critical Strikes . | . . . . . Average Backups 7 | 3 4 5 9 8 Power 1 | . 1 1 2 3 Propulsion 1 | 1 2 2 1 3 Utility . | . . . 1 2 Weapon 2 | . 1 2 3 . Tool/Special . | . . . . . Unused Backups 8 | . . . 4 4 Power 2 | . . . 1 1 Propulsion 1 | . . . . 1 Utility 3 | . . . 1 2 Weapon 2 | . . . 2 . Tool/Special . | . . . . . Average Slot Usage (%) 93 | . 96 100 92 75 Engine 7 | . 14 13 2 . Core 5 | . . . 8 10 Treads 24 | . 28 28 24 . Leg 1 | . . . 2 . Flight 3 | . . . 3 32 Storage 18 | . 24 28 13 11 Protection 10 | . . . 18 11 Energy Gun 14 | . 14 14 14 11 Ballistic Gun 5 | . 14 12 . . Ballistic Cannon 2 | . . 1 5 . Peak Build Rating 14 | 6 7 10 14 11 Average Rating 9 | 4 6 7 12 10 On Entrance 6 | . 6 7 10 11 Naked Turns . | . . . . . Heaviest Build 28 | 11 21 24 28 19 Greatest Support 60 | 40 40 40 60 12 Greatest Overweight (x) 5 | . . . 5 1 Average Overweight (x) . | . . . . 1 Largest Inventory Capacity 10 | 8 10 10 10 10 Average Capacity 9 | 6 9 10 10 10 Most Carried 10 | 4 5 9 10 8 Average Carried 7 | 3 4 6 9 8 Final Capacity 10 | 8 10 10 10 10 Final Carried 9 | 4 5 9 8 8 Class Distribution -------------------- 100% | Mutant Dominant Class ---------------- Mutant | -10/Materials Mutant | -10/Mines Mutant | -9/Materials Mutant | -9/Mines Resources | -11 -10 -10 -9 -9 ----------- Run | Yrd Mat Min Mat Min Matter Collected 560 | 225 66 51 218 . Remotely . | . . . . . Salvage Created 858 | . 161 114 583 . Parts 59 | . 11 9 39 . Haulers Intercepted 1 | . . . 1 . Recyclers Shooed 1 | . . . 1 . Parts Field Recycled . | . . . . . Retrieved Matter . | . . . . . Parts Self-Destructed . | . . . . . Prevented . | . . . . . Kills | -11 -10 -10 -9 -9 ------- Run | Yrd Mat Min Mat Min Combat Hostiles Destroyed 24 | . 5 4 15 . Guns 16 | . 5 3 8 . Cannons 7 | . . 1 6 . Classes Destroyed 5 | . 3 . 2 . Worker 1 | . 1 . . . Hauler 1 | . . . 1 . Swarmer 8 | . 3 2 3 . Grunt 12 | . 2 2 8 . Sentry 4 | . . . 4 . Best Kill Streak 3 | . 3 2 3 . Combat Bots Only 3 | . 3 2 3 . Max Kills in Single Turn 2 | . 2 1 1 . Gunslinging . | . . . . . Exploded . | . . . . . Melee . | . . . . . Uniques/NPCs Destroyed . | . . . . . Combat | -11 -10 -10 -9 -9 -------- Run | Yrd Mat Min Mat Min Hostile Shots Fired 137 | . 35 18 77 7 Missed 42 | . 14 4 23 1 Hits 95 | . 21 14 54 6 Melee 2 | . . . . 2 Projectile 93 | . 21 14 54 4 Critical Strikes 1 | . . . 1 . Actively Blocked 1 | . . . 1 . Part Disruptions 1 | . . . . 1 Damage Taken 1121 | . 216 135 691 79 Core 192 | . 60 16 90 26 Absorbed by Shields . | . . . . . Redirected to Shielding 12 | . . . 12 . Core Remaining (%) 84 | 100 . 69 . . Volleys Fired 57 | . 10 7 38 2 Largest 2 | . 2 2 2 1 Hottest 105 | . 60 70 105 45 Shots Fired 107 | . 20 14 71 2 Gun 87 | . 20 11 54 2 Cannon 20 | . . 3 17 . Launcher . | . . . . . Special . | . . . . . Kinetic 34 | . 10 7 17 . Thermal 66 | . 10 7 49 . Explosive . | . . . . . Electromagnetic 7 | . . . 5 2 Robot Hit Streak 9 | . 4 6 9 1 Robot Miss Streak 3 | . 1 2 3 1 Penetration Max . | . . . . . Secondary Targets 2 | . . 1 1 . Max Gunslinging Chain 1 | . . 1 1 . Shots Hit Robots 72 | . 13 9 48 2 Core Hits 40 | . 9 7 23 1 Critical Kills . | . . . . . Critical Parts Destroyed . | . . . . . Critical Strikes . | . . . . . Melee Attacks . | . . . . . Impact . | . . . . . Slashing . | . . . . . Piercing . | . . . . . Sneak Attacks . | . . . . . Combat Hostiles . | . . . . . Follow-up Attacks . | . . . . . Damage Inflicted 1101 | . 181 111 793 16 Guns 762 | . 181 80 485 16 Cannons 287 | . . 31 256 . Explosions . | . . . . . Melee . | . . . . . Ramming 52 | . . . 52 . Kinetic 400 | . 88 56 256 . Thermal 579 | . 93 55 431 . Explosive . | . . . . . Electromagnetic 70 | . . . 54 16 Impact . | . . . . . Slashing . | . . . . . Piercing . | . . . . . Highest Corruption 5 | . . . 2 5 Average Corruption 2 | . . . 2 2 Corruption Purged . | . . . . . Corruption Blocked . | . . . . . Effects 3 | . . . 3 . Matter Fused 3 | . . . 3 . Overload Shots . | . . . . . Overflow Damage . | . . . . . Projectiles . | . . . . . Explosions . | . . . . . Melee . | . . . . . Knockbacks 5 | . . . 5 . Impact . | . . . . . Kinetic 5 | . . . 5 . Secondary . | . . . . . Self-Inflicted Damage 17 | . . . 17 . Shots . | . . . . . Rammed 7 | . . 1 6 . Targets Rammed 8 | . . 1 7 . Kicked . | . . . . . Crushed 1 | . . . 1 . Highest Temperature 270 | . 42 54 270 46 Average Temperature 69 | . 29 28 77 26 Received Heat Transfer 428 | . 84 45 219 80 Siege Activations . | . . . . . Martial Activations . | . . . . . Shielding Activations . | . . . . . Robots Disrupted . | . . . . . Combat Hostiles . | . . . . . Robots Corrupted . | . . . . . Combat Hostiles . | . . . . . Parts Fried . | . . . . . Impact Corruptions . | . . . . . Robots Melted 1 | . . . 1 . Combat Hostiles 1 | . . . 1 . Parts Melted 3 | . . . 3 . Heat Transferred 1331 | . 200 125 1006 . Parts Sabotaged . | . . . . . Parts Stolen . | . . . . . Parts Stripped . | . . . . . Power Chain Reactions . | . . . . . Alert | -11 -10 -10 -9 -9 ------- Run | Yrd Mat Min Mat Min Maximum Alert Level . | . . . . . Low Security (%) 100 | 100 100 100 100 100 Level 1 . | . . . . . Level 2 . | . . . . . Level 3 . | . . . . . Level 4 . | . . . . . Level 5 . | . . . . . High Security . | . . . . . Max Security . | . . . . . Peak Influence 85 | . 85 65 77 25 Initial 26 | . . 26 17 25 Average 21 | . 17 13 29 12 Influence Increases 634 | . 125 105 389 15 Destroy 0b10 Robot/C 480 | . 100 80 300 . Destroy 0b10 Robot/NC 10 | . 5 . 5 . Destroy Leader 112 | . 20 10 82 . Disable Machine 15 | . . 15 . . Destroy Structure 2 | . . . 2 . Partial Spotted 15 | . . . . 15 Influence Decreases 634 | . 56 129 369 80 Entered New Map 111 | . . 43 28 40 Time Decay 506 | . 56 86 324 40 Lost Part 17 | . . . 17 . Squads Dispatched 2 | . 1 . 1 . Investigation . | . . . . . Extermination . | . . . . . Reinforcement 2 | . 1 . 1 . Assault . | . . . . . Garrison . | . . . . . Intercept . | . . . . . Searches Triggered . | . . . . . Construction Impeded . | . . . . . Haulers Reinforced . | . . . . . Active Scanning Responses . | . . . . . Cargo Convoy Interrupts . | . . . . . Stealth | -11 -10 -10 -9 -9 --------- Run | Yrd Mat Min Mat Min Distress Signals 4 | . . . 4 . Communications Jammed . | . . . . . Distress Signals . | . . . . . Times Spotted 58 | . 10 5 27 16 Peak Tracking Total 19 | . 4 3 7 19 Tactical Retreats 1 | . . . . 1 Traps | -11 -10 -10 -9 -9 ------- Run | Yrd Mat Min Mat Min Traps Triggered . | . . . . . Indirectly . | . . . . . Trap Hack Attempts . | . . . . . Triggered . | . . . . . Disarmed . | . . . . . Reprogrammed . | . . . . . Reused . | . . . . . Traps Extracted . | . . . . . Installed . | . . . . . Triggered . | . . . . . Machines | -11 -10 -10 -9 -9 ---------- Run | Yrd Mat Min Mat Min Machines Disabled 1 | . . 1 . . Max in Single Turn 1 | . . 1 . . Machines Repaired . | . . . . . Machines Dismantled . | . . . . . Machines Sabotaged . | . . . . . Overloaded Fab Kills . | . . . . . Hacking | -11 -10 -10 -9 -9 --------- Run | Yrd Mat Min Mat Min Machines Accessed . | . . . . . Terminals . | . . . . . Fabricators . | . . . . . Repair Stations . | . . . . . Recycling Units . | . . . . . Scanalyzers . | . . . . . Garrison Access . | . . . . . Total Hacks . | . . . . . Successful . | . . . . . Failed . | . . . . . Catastrophic . | . . . . . Database Lockouts . | . . . . . Manual . | . . . . . Terminals . | . . . . . Fabricators . | . . . . . Repair Stations . | . . . . . Recycling Units . | . . . . . Scanalyzers . | . . . . . Garrison Access . | . . . . . Terminal Hacks . | . . . . . Fabricator Hacks . | . . . . . Repair Station Hacks . | . . . . . Recycling Unit Hacks . | . . . . . Scanalyzer . | . . . . . Garrison Access Hacks . | . . . . . Unauthorized Hacks . | . . . . . Terminals . | . . . . . Fabricators . | . . . . . Repair Stations . | . . . . . Recycling Units . | . . . . . Scanalyzers . | . . . . . Garrison Access . | . . . . . Data Cores Recovered . | . . . . . Used . | . . . . . Hacking Detections . | . . . . . Full Trace Events . | . . . . . Feedback Events . | . . . . . Feedback Blocked . | . . . . . Robot Schematics Acquired . | . . . . . Robots Built . | . . . . . Authchips . | . . . . . Time . | . . . . . Total Robot Build Rating . | . . . . . Part Schematics Acquired . | . . . . . Parts Built . | . . . . . Authchips . | . . . . . Time . | . . . . . Total Part Build Rating . | . . . . . Parts Repaired . | . . . . . Time . | . . . . . Parts Recycled . | . . . . . Recycled Matter . | . . . . . Retrieved Matter . | . . . . . Retrieved Components . | . . . . . Parts Scanalyzed . | . . . . . Part Schematics Acquired . | . . . . . Parts Damaged . | . . . . . Bothacking | -11 -10 -10 -9 -9 ------------ Run | Yrd Mat Min Mat Min Used RIF Installer . | . . . . . Robots Hacked . | . . . . . Non-combat . | . . . . . Combat . | . . . . . Robot Hacks Applied . | . . . . . Relay Couplers Released . | . . . . . Fabnet Peak Effective % . | . . . . . Robots Rewired . | . . . . . Allies Hacked . | . . . . . Hacks Repelled . | . . . . . Allies | -11 -10 -10 -9 -9 -------- Run | Yrd Mat Min Mat Min Total Allies . | . . . . . Largest Group . | . . . . . Highest-Rated Group . | . . . . . Highest-Rated Ally . | . . . . . Total Orders . | . . . . . Ally Attacks . | . . . . . Total Damage . | . . . . . Kills . | . . . . . Allies Corrupted . | . . . . . Allies Melted . | . . . . . Intel | -11 -10 -10 -9 -9 ------- Run | Yrd Mat Min Mat Min Active Infowar (turns) . | . . . . . Robot Analysis Total . | . . . . . Derelict Logs Recovered 1 | . . 1 . . Drone Launches . | . . . . . Drone Recoveries . | . . . . . Exploration | -11 -10 -10 -9 -9 ------------- Run | Yrd Mat Min Mat Min Turns Passed 1870 | 89 432 303 935 111 Spaces Moved 987 | 51 227 170 466 73 Core 4 | 4 . . . . Treads 813 | 47 227 170 369 . Legs 36 | . . . 36 . Wheels . | . . . . . Hover . | . . . . . Flight 134 | . . . 61 73 Fastest Speed 50 | 50 160 160 114 114 Average Speed 155 | 151 160 160 158 114 Slowest Speed 440 | 160 160 160 440 114 Overloaded Moves . | . . . . . Propulsion Burnouts . | . . . . . Robots Hopped 1 | . 1 . . . Potential Cave-ins . | . . . . . Cave-ins Triggered . | . . . . . Exploration Rate (%) 27 | 3 37 48 34 13 Regions Visited 4 Branch Regions 2 Pre-discovered Areas . | . . . . . Known Exits Taken . | . . . . . Unknown Exits Taken 4 | 1 1 1 1 . Scrap Searched . | . . . . . Spaces Dug . | . . . . . Terrain Destroyed . | . . . . . Melee . | . . . . . Projectile . | . . . . . AOE . | . . . . . Terrain Rammed 3 | . . . 3 . Walls Destroyed . | . . . . . Machines Disabled . | . . . . . Actions | -11 -10 -10 -9 -9 --------- Run | Yrd Mat Min Mat Min Total 1210 | 60 274 186 592 98 Wait 108 | . 37 5 43 23 Move 981 | 50 224 169 465 73 Hop 1 | . 1 . . . Pick Up 15 | 4 1 2 8 . Fast Attach 13 | 6 1 . 6 . Attach 5 | . . . 5 . Detach 2 | . . . 2 . Swap 5 | . . 2 3 . Drop 12 | . . . 12 . Fire 57 | . 10 7 38 2 Melee . | . . . . . Ram 3 | . . . 3 . Kick . | . . . . . Crush 8 | . . 1 7 . Escape Stasis . | . . . . . Rewire . | . . . . . Trap . | . . . . . Miscellaneous . | . . . . . Route ------- -11/Scrapyard -10/Materials (discovered 3 exits: [*Mat] / [*Min x2]) -10/Mines -9/Materials -9/Mines History --------- Turn | Location | Event 7 | -11/Scrapyard | Discovered new exit (range 15) 90 | -11/Scrapyard | Entered Materials 91 | -10/Materials | Met a group of wandering Federalists 102 | -10/Materials | Discovered new exit (range 15) 288 | -10/Materials | Discovered new exit (range 15) 318 | -10/Materials | Build established: Mutant 417 | -10/Materials | Discovered new exit (range 9) 522 | -10/Materials | Entered Mines 548 | -10/Mines | Found a Scrap Suit stashed away for nefarious purposes 551 | -10/Mines | Found Scrap Suit 782 | -10/Mines | Discovered new exit (range 15) 825 | -10/Mines | Entered Materials 825 | -9/Materials | Evolved 2 slots: Propulsion x1, Utility x1 1743 | -9/Materials | Discovered new exit (range 15) 1760 | -9/Materials | Entered Mines 1761 | -9/Mines | Assembled infested the area 1766 | -9/Mines | Assisted by a Guerilla fighting off Assembled 1871 | -9/Mines | Self-destructed Last Messages --------------- 01761_ ALERT: Infestation in the mines, dispatching Demolisher response squad. 01766_ A derelict emerges from the shadows: "You need to get out of here! I've been tracking a group of Assembled to figure out where they're coming from, and they're closing on this area, come on!" 01781_ IK-U4V(h): "I'll hold them off! Go on ahead or try to find another way!" 01783_ as-13931 destroyed. 01791_ HV Slug penetrates Wall. 01798_ as-57426 sneak attacks. 01798_ T-07 Excavator system corrupted by crushing effect. 01798_ T-07 Excavator destroyed. [Achievement: Slippery One] 01812_ T-07 Excavator is excavating. 01866_ Lgt. Nuclear Core destroyed. 01869_ Flight Unit destroyed. 01869_ System corrupted by crushing effect (+3). Map ----- +----------------------------------------------------+ | ??????????????????????????????????????????? | | ???????????????????????###############????? | | ???????????????????? " #????? | | ???????????????????? % #????? | | ???????????????????????????######## #????? | | ??????????????????????????????????# #????? | | ??????????????????????????????????# #????? | | ??????????????????????????????????# #????? | | ??????????????????????????????????# %#????? | | ?????????????????????????????????## #????? | | ????????????????????????????????## #????? | | ???????????????????????????????## #????? | | ???????????????????????????????# #????? | | ???????????????????????????????# a ##???? | | ???????????????????????????????# ##??? | | ????????????????????????####??## ##?? | | ???????????????????????## ####a #?? | | ???????????????????????# #?? | | ???????????????????????# ## ##?? | | ???????????????????????## ##### ##??? | | ????????????????????????# ##????###???? | | ???????????????????????## a #???????????? | | ?????????????????????### ##???????????? | | ????????????????????## a ##????????????? | | ???????????????????## aa########???????? | | ???????????????????# @### #???????? | | ???????????????????# #???????? | | ???????????????????# #???????? | | ???????????????????# ###### #???????? | | ???????????????????## #?????#### ##???????? | | ????????????????????##?????????###????????? | | ??????????????????????????????????????????? | | ??????????????????????????????????????????? | | ??????????????????????????????????????????? | | | | | | | | | | | | | | | | | | | | | | | | | | | | | | | | | +----------------------------------------------------+ Best States ------------- Heat Dissipation 28 Energy Generation 14 Energy Capacity 280 Matter Stores 300 Matter Capacity 300 Sight Range 16 Terrain Scan Density 10 Armor Coverage 150 Utility Shielding 33 Evasion (%) 40 Recoil Reduction 3 Item Schematics ----------------- None Robot Schematics ------------------ None Fabricated ------------ Nothing Repaired ---------- Nothing Alien Tech Used ----------------- None Achievements -------------- Slippery One Challenges ------------ None Game ------ Seed ArcsightZhirovChip Manual? 0 Play Time 00:13:09 Cumulative 8.0 hours Start 2025.06.09 @ 22:48:33 End 2025.06.18 @ 19:42:19 Sessions 2 Manual Loads 0 Difficulty Rogue Special Mode None Game No. 24 Rogue 24 Adventurer 0 Explorer 0 Win Type - Total 0 Types 0/0/0/0/0/0/0/0/0/0 Lore% 4 Gallery% 12 Achievement% 16 Wizard Run 0 Options --------- Layout 1 ASCII 0 Keyboard 0 Movement Mouse Keybinds 0 Fullscreen 2 Font 24/Smallcaps Map View 50x35 Zoom Use 0% Tactical HUD 1 Map Filters NONE Filters NONE Steam 1 RUN: a711932c-4441-460f-a929-ba1e31e4d9c3